Cogmind - Beta 10.2 *** ADVENTURER MODE // 2021.10.16 @ 09:53:17 Player: DerKer Result: Destroyed by G-47 Trooper with Particle Gun Performance ------------- Evolutions (1) 500 Regions Visited (2) 400 Robots Destroyed (38) 190 Value Destroyed (832) 832 Prototype IDs (6) 120 Alien Tech Used (0) 0 Bonus (0) 0 TOTAL SCORE: 2042 Bonus ------- None Cogmind --------- Core Integrity 0/400 Matter 223/300 Energy 100/100 System Corruption 0% Temperature Cool (9) Movement Core (550) Ox10 Location -9/Materials Parts ------- > --- POWER (2) -------- (None) > --- PROPULSION (2) --- (None) > --- UTILITY (3) ------ Large Storage Unit Large Storage Unit Salvage Targeting Computer > --- WEAPON (2) ------- (None) > --- INVENTORY (16) --- Improved Aluminum Leg Compact Wheel Compact Wheel Large Storage Unit Large Storage Unit Large Storage Unit High-capacity Storage Unit Visual Processing Unit Transmission Jammer Power Shielding Light Armor Plating Peak State ------------ > --- POWER ------------ Ion Engine Light Ion Engine > --- PROPULSION ------- Armored Treads Armored Treads > --- UTILITY ---------- Large Storage Unit Large Storage Unit Salvage Targeting Computer > --- WEAPON ----------- Light Assault Rifle > --- INVENTORY -------- Compact Wheel Compact Wheel Large Storage Unit Large Storage Unit Large Storage Unit High-capacity Storage Unit Visual Processing Unit Power Shielding Light Armor Plating Grenade Launcher Mining Laser [Rating: 14] Favorites ----------- Power Ion Engine Engine Ion Engine Propulsion Aluminum Leg Treads Armored Treads Leg Aluminum Leg Wheel Compact Wheel Flight Unit Flight Unit Utility Large Storage Unit Storage Large Storage Unit Processor Salvage Targeting Computer Protection Weapon Shielding Weapon Light Assault Rifle Energy Gun EM Pulse Gun Ballistic Gun Light Assault Rifle Launcher Grenade Launcher Special Weapon Mining Laser Build | -11 -10 -9 ------- Run | Scr Mat Mat Slots Evolved 2 | . . 2 Power 1 | . . 1 Propulsion . | . . . Utility 1 | . . 1 Weapon . | . . . Parts Attached 28 | 8 13 7 Power 5 | 1 3 1 Engine 5 | 1 3 1 Core . | . . . Reactor . | . . . Propulsion 11 | 4 5 2 Treads 4 | 2 . 2 Leg 2 | 2 . . Wheel 3 | . 3 . Hover . | . . . Flight 2 | . 2 . Utility 6 | 1 3 2 Device . | . . . Storage 3 | 1 1 1 Processor 1 | . . 1 Hackware . | . . . Protection 2 | . 2 . Artifact . | . . . Weapon 6 | 2 2 2 Energy Gun 1 | 1 . . Energy Cannon . | . . . Ballistic Gun 2 | 1 1 . Ballistic Cannon . | . . . Launcher 2 | . 1 1 Special Weapon 1 | . . 1 Impact Weapon . | . . . Slashing Weapon . | . . . Piercing Weapon . | . . . Special Melee Weapon . | . . . Unidentified Prototypes . | . . . Parts Lost 11 | . 3 8 Power 3 | . 1 2 Propulsion 4 | . 2 2 Utility . | . . . Weapon 4 | . . 4 Highest Loss Streak 3 | . 3 2 Average Slot Usage (%) 88 | . 94 76 Engine 12 | . 12 11 Treads 5 | . . 14 Leg 10 | . 16 . Wheel 5 | . 5 5 Flight 1 | . 2 . Storage 16 | . 14 22 Processor 3 | . . 9 Protection 9 | . 13 1 Energy Gun 2 | . 4 . Ballistic Gun 10 | . 14 4 Launcher 7 | . 9 4 Naked Turns . | . . . Heaviest Build 47 | 12 28 47 Greatest Support 40 | 40 32 40 Greatest Overweight (x) 10 | 1 8 10 Average Overweight (x) . | . . . Largest Inventory Capacity 16 | 6 10 16 Average Capacity 11 | 4 9 16 Most Carried 12 | 4 10 12 Average Carried 8 | 1 8 10 Final Capacity 16 | 6 10 16 Final Carried 11 | 1 10 11 Class Distribution -------------------- 100% | Mutant Dominant Class ---------------- Mutant | -10/Materials Mutant | -9/Materials Resources | -11 -10 -9 ----------- Run | Scr Mat Mat Matter Collected 725 | 166 444 115 Remotely . | . . . Salvage Created 774 | . 527 247 Parts 66 | . 42 24 Haulers Intercepted 1 | . . 1 Recyclers Shooed . | . . . Parts Field Recycled . | . . . Retrieved Matter . | . . . Parts Self-Destructed . | . . . Prevented . | . . . Kills | -11 -10 -9 ------- Run | Scr Mat Mat Combat Hostiles Destroyed 25 | . 16 9 Guns 8 | . 7 1 Cannons 2 | . . 2 AOE 15 | . 9 6 Classes Destroyed 8 | . 5 3 Worker 3 | . 2 1 Builder 3 | . 2 1 Hauler 1 | . . 1 Operator 1 | . . 1 Watcher 5 | . 3 2 Swarmer 10 | . 6 4 Grunt 12 | . 10 2 Sentry 3 | . . 3 Best Kill Streak 10 | . 5 10 Combat Bots Only 4 | . 3 4 Max Kills in Single Turn 3 | . 2 3 Gunslinging . | . . . Exploded 2 | . 2 2 Melee . | . . . Uniques/NPCs Destroyed . | . . . Combat | -11 -10 -9 -------- Run | Scr Mat Mat Damage Taken 2023 | . 566 1457 Core 515 | . 112 403 Absorbed by Shields . | . . . Core Remaining (%) 77 | 100 55 . Volleys Fired 81 | . 45 36 Largest 2 | . 2 2 Hottest 100 | . 60 100 Shots Fired 137 | . 89 48 Gun 98 | . 72 26 Cannon . | . . . Launcher 34 | . 17 17 Special 5 | . . 5 Kinetic 71 | . 45 26 Thermal 5 | . . 5 Explosive 34 | . 17 17 Electromagnetic 27 | . 27 . Robot Hit Streak 22 | . 8 22 Robot Miss Streak 3 | . 3 3 Penetration Max . | . . . Secondary Targets 1 | . 1 . Max Gunslinging Chain 1 | . 1 . Shots Hit Robots 91 | . 56 35 Core Hits 77 | . 40 37 Critical Hits . | . . . Critical Kills . | . . . Critical Parts Destroyed . | . . . Melee Attacks . | . . . Impact . | . . . Slashing . | . . . Piercing . | . . . Sneak Attacks . | . . . Combat Hostiles . | . . . Follow-up Attacks . | . . . Damage Inflicted 2455 | . 1517 938 Guns 653 | . 468 185 Cannons . | . . . Explosions 1698 | . 1049 649 Melee . | . . . Ramming 32 | . . 32 Kinetic 354 | . 169 185 Thermal 290 | . 218 72 Explosive 1373 | . 724 649 Electromagnetic 406 | . 406 . Impact . | . . . Slashing . | . . . Piercing . | . . . Highest Corruption . | . . . Average Corruption . | . . . Corruption Purged . | . . . Overload Shots . | . . . Overflow Damage 84 | . 84 . Projectiles . | . . . Explosions 84 | . 84 . Melee . | . . . Knockbacks . | . . . Impact . | . . . Kinetic . | . . . Secondary . | . . . Self-Inflicted Damage 297 | . 172 125 Shots 13 | . 6 7 Rammed 8 | . . 8 Targets Rammed 8 | . . 8 Kicked . | . . . Crushed . | . . . Highest Temperature 118 | . 115 118 Average Temperature 29 | . 28 32 Received Heat Transfer 1104 | . 222 882 Siege Activations . | . . . Robots Corrupted . | . . . Combat Hostiles . | . . . Parts Fried . | . . . Impact Corruptions . | . . . Robots Melted . | . . . Combat Hostiles . | . . . Parts Melted . | . . . Heat Transferred 400 | . 250 150 Parts Sabotaged . | . . . Parts Stolen . | . . . Parts Stripped . | . . . Power Chain Reactions 2 | . 2 . Missiles Intercepted . | . . . Alert | -11 -10 -9 ------- Run | Scr Mat Mat Peak Influence 356 | . 330 356 Initial 18 | . . 18 Average 146 | . 124 213 Maximum Alert Level 1 | . 1 1 Low Security (%) 73 | 100 87 46 Level 1 26 | . 12 53 Level 2 . | . . . Level 3 . | . . . Level 4 . | . . . Level 5 . | . . . High Security . | . . . Max Security . | . . . Squads Dispatched 9 | . 6 3 Investigation 6 | . 6 . Extermination . | . . . Reinforcement 3 | . . 3 Assault . | . . . Garrison . | . . . Intercept . | . . . Construction Impeded . | . . . Haulers Reinforced . | . . . Stealth | -11 -10 -9 --------- Run | Scr Mat Mat Distress Signals 5 | . 4 1 Communications Jammed . | . . . Distress Signals . | . . . Times Spotted 42 | . 22 20 Peak Tracking Total 6 | . 5 6 Tactical Retreats 2 | . 2 . Traps | -11 -10 -9 ------- Run | Scr Mat Mat Traps Triggered 3 | . 3 . Indirectly . | . . . Trap Hack Attempts . | . . . Triggered . | . . . Disarmed . | . . . Reprogrammed . | . . . Reused . | . . . Traps Extracted . | . . . Installed . | . . . Triggered . | . . . Machines | -11 -10 -9 ---------- Run | Scr Mat Mat Machines Disabled 6 | . 3 3 Max in Single Turn 2 | . 1 2 Machines Sabotaged . | . . . Garrisons Compromised . | . . . Overloaded Fab Kills . | . . . Fab Network Shutdowns . | . . . Hacking | -11 -10 -9 --------- Run | Scr Mat Mat Machines Accessed 10 | . 9 1 Terminals 6 | . 6 . Fabricators . | . . . Repair Stations 2 | . 1 1 Recycling Units 2 | . 2 . Scanalyzers . | . . . Garrison Access . | . . . Total Hacks 51 | . 48 3 Successful 41 | . 40 1 Failed 10 | . 8 2 Catastrophic . | . . . Database Lockouts . | . . . Manual . | . . . Terminals 37 | . 37 . Fabricators . | . . . Repair Stations 6 | . 3 3 Recycling Units 8 | . 8 . Scanalyzers . | . . . Garrison Access . | . . . Terminal Hacks 32 | . 32 . Record 11 | . 11 . Robot Analysis 1 | . 1 . Prototype ID Bank 3 | . 3 . Level Access Points 1 | . 1 . Branch Access Points 1 | . 1 . Emergency Access Points 3 | . 3 . Scanalyzer Index 1 | . 1 . Alert Level 1 | . 1 . Unreport Threat 1 | . 1 . Locate Traps 1 | . 1 . Dispatch Records 2 | . 2 . Transport Status 1 | . 1 . Investigation Status 1 | . 1 . Recall Investigation 1 | . 1 . Hauler Manifests 2 | . 2 . Zone Layout 1 | . 1 . Fabricator Hacks . | . . . Repair Station Hacks 3 | . 2 1 Scan Component 2 | . 1 1 Repair 1 | . 1 . Recycling Unit Hacks 6 | . 6 . Recycle Component 2 | . 2 . Process 2 | . 2 . Retrieve Components 2 | . 2 . Scanalyzer . | . . . Garrison Access Hacks . | . . . Unauthorized Hacks . | . . . Terminals . | . . . Fabricators . | . . . Repair Stations . | . . . Recycling Units . | . . . Scanalyzers . | . . . Garrison Access . | . . . Data Cores Recovered . | . . . Used . | . . . Hacking Detections 9 | . 8 1 Full Trace Events 6 | . 5 1 Feedback Events . | . . . Feedback Blocked . | . . . Robot Schematics Acquired . | . . . Robots Built . | . . . Matter . | . . . Time . | . . . Total Robot Build Rating . | . . . Part Schematics Acquired . | . . . Parts Built . | . . . Matter . | . . . Time . | . . . Total Part Build Rating . | . . . Parts Repaired 1 | . 1 . Time 26 | . 26 . Parts Recycled 2 | . 2 . Recycled Matter . | . . . Retrieved Matter . | . . . Retrieved Components 11 | . 11 . Parts Scanalyzed . | . . . Part Schematics Acquired . | . . . Parts Damaged . | . . . Bothacking | -11 -10 -9 ------------ Run | Scr Mat Mat Used RIF Installer . | . . . Robots Hacked . | . . . Non-combat . | . . . Combat . | . . . Robot Hacks Applied . | . . . Relay Couplers Released . | . . . Robots Rewired . | . . . Allies Hacked . | . . . Hacks Repelled . | . . . Allies | -11 -10 -9 -------- Run | Scr Mat Mat Total Allies . | . . . Largest Group . | . . . Highest-Rated Group . | . . . Highest-Rated Ally . | . . . Total Orders . | . . . Ally Attacks . | . . . Total Damage . | . . . Kills . | . . . Allies Corrupted . | . . . Allies Melted . | . . . Intel | -11 -10 -9 ------- Run | Scr Mat Mat Robot Analysis Total 1 | . 1 . Derelict Logs Recovered . | . . . Drone Launches . | . . . Drone Recoveries . | . . . Exploration | -11 -10 -9 ------------- Run | Scr Mat Mat Turns Passed 1612 | 110 945 557 Spaces Moved 876 | 83 534 259 Core 59 | 30 20 9 Treads 174 | 7 . 167 Legs 364 | 46 318 . Wheels 245 | . 162 83 Hover . | . . . Flight 34 | . 34 . Fastest Speed 50 | 50 100 110 Average Speed 146 | 110 142 167 Slowest Speed 550 | 160 450 550 Overloaded Moves . | . . . Propulsion Burnouts . | . . . Robots Hopped . | . . . Cave-ins Triggered . | . . . Exploration Rate (%) 42 | 4 89 35 Regions Visited 2 Branch Regions . Pre-discovered Areas . | . . . Known Exits Taken 1 | . 1 . Unknown Exits Taken 1 | 1 . . Scrap Searched . | . . . Spaces Dug . | . . . Terrain Destroyed 168 | . 88 80 Melee . | . . . Projectile . | . . . AOE 168 | . 88 80 Terrain Rammed . | . . . Walls Destroyed . | . . . Machines Disabled . | . . . Actions | -11 -10 -9 --------- Run | Scr Mat Mat Total 1064 | 101 637 326 Wait 37 | . 26 11 Move 874 | 82 533 259 Hop . | . . . Pick Up 29 | 9 15 5 Fast Attach 6 | . 6 . Attach 13 | 6 3 4 Detach . | . . . Swap 9 | 2 4 3 Drop 7 | 2 5 . Fire 81 | . 45 36 Melee . | . . . Ram . | . . . Kick . | . . . Crush 8 | . . 8 Escape Stasis . | . . . Rewire . | . . . Trap . | . . . Miscellaneous . | . . . Route ------- -11/Scrapyard -10/Materials (discovered 5 exits: *Mat x3 / *Min x2) -9/Materials (discovered 1 exit: [*Min]) History --------- Turn | Location | Event 12 | -11/Scrapyard | Discovered new exit (range 15) 111 | -11/Scrapyard | Entered Materials 316 | -10/Materials | Build established: Mutant 439 | -10/Materials | Discovered new exit (range 16) 594 | -10/Materials | Discovered new exit (range 13) 717 | -10/Materials | Lost 3 parts (1p2n) 898 | -10/Materials | Repaired Com. Wheel 938 | -10/Materials | Discovered new exit (range 8) 1018 | -10/Materials | Identified exit to Mines 1041 | -10/Materials | Identified exit to Materials 1056 | -10/Materials | Entered another Materials area 1056 | -9/Materials | Evolved 2 slots: Power x1, Utility x1 1573 | -9/Materials | Discovered new exit (range 12) 1583 | -9/Materials | Core integrity fell below 50% 1603 | -9/Materials | Core integrity fell below 20% 1613 | -9/Materials | Destroyed by G-47 Trooper with Particle Gun Last Messages --------------- T-07 Excavator is excavating. ALERT: Hostiles spotted, dispatching reinforcements to Terminal M011. C-30 ARC bursts open, deploying its payload. G-47 Trooper unfolds itself. G-34 Mercenary unfolds itself. Slammed into O-16 Technician. Slammed into A-02 Transporter. Mining Laser destroyed. Ion Engine destroyed. Slammed into K-01 Serf. Slammed into R-06 Scavenger. U-05 Engineer builds a Wall. U-05 Engineer lays Concrete. Arm. Treads destroyed. Slammed into G-34 Mercenary. K-01 Serf cleans the Terminal. Arm. Treads destroyed. K-01 Serf cleans the Terminal. EXIT=FOUND U-05 Engineer lays Concrete. Map ----- +----------------------------------------------------+ | ????????????????????????????????????????????? | | ????????????????????????????????????????????? | | ????????????????????????????????????????????? | | ????????????????????????????????????????????? | | ????????????????????????????????????????????? | | # #######??????????????????????????????????????? | | # # ??????????????????????????????????????? | | # # ???????????????????????????????????? | | # # ????????????????????????????????????? | | # # """ """???????????????????????????????????? | | # # """ """???????????????????????????????????? | | # ^# """ """????? ?????????????????????????????? | | ????#? #????????????????????????????? | | # # ###???## #????????????????????????????? | | # ##### ????????????????????????????? | | ????????????????????????????? | | % T ????????????????????????????? | | ????????????????????????????? | | ### ##### ????????????????????????????? | | ??# #??### #????????????????????????????? | | ??## # # # #????????#####???????????????? | | ??#!! #?""" + #???????"|"!""#??????????????? | | ??#!! #???? # #?????? "|"!" #??????????????? | | ??#== #?????# ####### ####???????????? | | ??#== #?????# k t ????????? | | ??#! #?????+ g @ < ????????? | | ??#!! #?????# g ????????? | | ??##### #?#######+## ## ####???????????? | | ??????# #?# #gg #?########??????????????? | | ####### #?# """ # ##??????????####????????? | | ## #?# """"" # ?????????? ????????? | | ## #?# """"" # ###????????# #????????? | | """ ## #?# """"" # #########??# #????????? | | T" ## #?# """ # # #??# #????????? | | =""" # ### # + ???# #????????? | | # + #??????????# #????????? | | +## ## = # ##########?# #????????? | | ########### # #?# #????????? | | # #???????# # """ ### ##???????? | | ########### # """ ## #???????? | | ###### / """ ## #???????? | | ????####### ####+##+## # + T #???????? | | ????#########?# # ## """ ## #???????? | | ??????????????# """ # ## """ ## #???????? | | ??????????????# """ + ## """ #### ###???????? | | ??????????????# """ ## ## ! #??# #?????????? | | ###???????????# ##"#####+######## ########??? | | #???????????# ! ##%" ^ +? | | #???????????#########"################# #####??? | | #???????????????????# #?????????????????#??????? | +----------------------------------------------------+ Best States ------------- Heat Dissipation 28 Energy Generation 15 Energy Capacity 275 Matter Stores 300 Matter Capacity 300 Sight Range 16 Terrain Scan Density 10 Armor Coverage 150 Resistance: KI 20 Resistance: TH 20 Resistance: EX 20 Resistance: EM 20 Resistance: I 20 Resistance: S 20 Resistance: P 20 Weapon Shielding 33 Evasion (%) 40 Recoil Reduction 2 Salvage Targeting 1 Offensive Hacking 10 Item Schematics ----------------- None Robot Schematics ------------------ None Fabricated ------------ Nothing Alien Tech Used ----------------- None Achievements -------------- Librarian Challenges ------------ None Game ------ Seed EnhancedGlidesysLoader Manual? 0 Play Time 00:23:02 Cumulative 3.6 hours Start 2021.10.12 @ 12:54:36 End 2021.10.16 @ 09:53:17 Sessions 5 Manual Loads 0 Difficulty Adventurer Special Mode None Game No. 6 Rogue 0 Adventurer 6 Explorer 0 Win Type - Total 0 Types 0/0/0/0/0/0/0/0/0 Lore% 3 Gallery% 8 Achievement% 8 Wizard Run 0 Options --------- ASCII 0 Keyboard 0 Movement Mouse Keybinds 0 Fullscreen 1 Font 18/SmallcapsGlow Map View 76x50 Tactical HUD 0 Map Filters NONE Filters NONE Steam 1 RUN: a834b59f-f780-4e09-bd9b-b5c1c384294c